[Event "Titled Tuesday Blitz November 14 Late 2023"]
[White "Tristan, Leonardo"]
[Black "Avalos Parra, Joao"]
[WhiteFideId "113816"]
[BlackFideId "3402541"]
[WhiteElo "2677"]
[BlackElo "2368"]
[Result "1-0"]
[Round "11"]
[TimeControl "180+1"]
[Date "2023.11.14"]
[WhiteClock "0:02:05"]
[BlackClock "0:01:47"]
[Board "48"]

1. d4 {[%clk 0:03:00]}  d5 {[%clk 0:02:59]} 2. Nf3 {[%clk 0:03:01]}  Nf6 {[%clk 0:02:59]} 3. Bf4 {[%clk 0:03:01]}  e6 {[%clk 0:02:59]} 4. e3 {[%clk 0:03:01]}  Bd6 {[%clk 0:02:51]} 5. c3 {[%clk 0:03:01]}  O-O {[%clk 0:02:51]} 6. Nbd2 {[%clk 0:03:01]}  c5 {[%clk 0:02:52]} 7. Bd3 {[%clk 0:03:01]}  Qc7 {[%clk 0:02:52]} 8. Bxd6 {[%clk 0:02:59]}  Qxd6 {[%clk 0:02:51]} 9. Ne5 {[%clk 0:03:00]}  Nc6 {[%clk 0:02:48]} 10. f4 {[%clk 0:03:00]}  Ne7 {[%clk 0:02:49]} 11. Qf3 {[%clk 0:02:59]}  b6 {[%clk 0:02:46]} 12. g4 {[%clk 0:02:56]}  Bb7 {[%clk 0:02:46]} 13. g5 {[%clk 0:02:57]}  Nd7 {[%clk 0:02:42]} 14. Qh3 {[%clk 0:02:42]}  f5 {[%clk 0:02:39]} 15. gxf6 {[%clk 0:02:41]}  Nxf6 {[%clk 0:02:40]} 16. Rg1 {[%clk 0:02:37]}  Kh8 {[%clk 0:02:37]} 17. O-O-O {[%clk 0:02:23]}  cxd4 {[%clk 0:02:33]} 18. exd4 {[%clk 0:02:17]}  Rac8 {[%clk 0:02:34]} 19. Rxg7 {[%clk 0:02:08]}  Kxg7 {[%clk 0:02:33]} 20. Rg1+ {[%clk 0:02:08]}  Kh8 {[%clk 0:01:47]} 21. Qh6 {[%clk 0:02:05]} 1-0


[Site "https://www.chess.com"]

[Event "Titled Tuesday Blitz November 14 Late 2023"]
[White "Pourkashiyan, Atousa"]
[Black "Mazurkiewicz, Michal"]
[WhiteFideId "12502014"]
[BlackFideId "1124943"]
[WhiteElo "2527"]
[BlackElo "2427"]
[Result "0-1"]
[Round "11"]
[TimeControl "180+1"]
[Date "2023.11.14"]
[WhiteClock "0:00:06"]
[BlackClock "0:00:16"]
[Board "51"]

1. e4 {[%clk 0:02:57]}  d6 {[%clk 0:02:59]} 2. d4 {[%clk 0:02:57]}  Nf6 {[%clk 0:03:00]} 3. Nc3 {[%clk 0:02:57]}  c6 {[%clk 0:03:00]} 4. a4 {[%clk 0:02:57]}  e5 {[%clk 0:03:00]} 5. dxe5 {[%clk 0:02:54]}  dxe5 {[%clk 0:03:01]} 6. Qxd8+ {[%clk 0:02:54]}  Kxd8 {[%clk 0:03:02]} 7. Bc4 {[%clk 0:02:54]}  Be6 {[%clk 0:03:01]} 8. Bxe6 {[%clk 0:02:54]}  fxe6 {[%clk 0:03:02]} 9. Bg5 {[%clk 0:02:55]}  Bb4 {[%clk 0:03:00]} 10. O-O-O+ {[%clk 0:02:53]}  Kc7 {[%clk 0:03:00]} 11. Na2 {[%clk 0:02:42]}  Nxe4 {[%clk 0:02:53]} 12. Nxb4 {[%clk 0:02:34]}  Nxg5 {[%clk 0:02:52]} 13. f3 {[%clk 0:02:26]}  Nd7 {[%clk 0:02:45]} 14. Ne2 {[%clk 0:02:24]}  a5 {[%clk 0:02:23]} 15. Na2 {[%clk 0:02:07]}  Nc5 {[%clk 0:02:18]} 16. h4 {[%clk 0:02:03]}  Nf7 {[%clk 0:02:18]} 17. Nac3 {[%clk 0:02:02]}  Rad8 {[%clk 0:02:14]} 18. Ng3 {[%clk 0:02:01]}  Nd6 {[%clk 0:02:06]} 19. Rde1 {[%clk 0:01:54]}  Nf7 {[%clk 0:01:39]} 20. Nge4 {[%clk 0:01:53]}  Nxe4 {[%clk 0:01:39]} 21. Nxe4 {[%clk 0:01:48]}  b6 {[%clk 0:01:32]} 22. Ng5 {[%clk 0:01:41]}  Nxg5 {[%clk 0:01:32]} 23. hxg5 {[%clk 0:01:42]}  Rd5 {[%clk 0:01:32]} 24. Re4 {[%clk 0:01:40]}  Kd6 {[%clk 0:01:19]} 25. b3 {[%clk 0:01:40]}  Rd4 {[%clk 0:01:18]} 26. Re2 {[%clk 0:01:34]}  b5 {[%clk 0:01:16]} 27. c3 {[%clk 0:01:25]}  Rd5 {[%clk 0:01:09]} 28. Ra2 {[%clk 0:01:20]}  bxa4 {[%clk 0:01:02]} 29. Rxa4 {[%clk 0:01:20]}  e4 {[%clk 0:00:52]} 30. g6 {[%clk 0:01:06]}  exf3 {[%clk 0:00:51]} 31. gxf3 {[%clk 0:01:03]}  h5 {[%clk 0:00:50]} 32. f4 {[%clk 0:00:57]}  h4 {[%clk 0:00:47]} 33. Rh3 {[%clk 0:00:57]}  Rf5 {[%clk 0:00:42]} 34. Re4 {[%clk 0:00:56]}  Rf6 {[%clk 0:00:42]} 35. Rd4+ {[%clk 0:00:45]}  Kc7 {[%clk 0:00:40]} 36. Kb2 {[%clk 0:00:37]}  Rxg6 {[%clk 0:00:40]} 37. Rdd3 {[%clk 0:00:34]}  Rg4 {[%clk 0:00:39]} 38. Rdf3 {[%clk 0:00:34]}  Rf8 {[%clk 0:00:38]} 39. Re3 {[%clk 0:00:31]}  Kd7 {[%clk 0:00:36]} 40. Re5 {[%clk 0:00:29]}  Rfxf4 {[%clk 0:00:32]} 41. Rxa5 {[%clk 0:00:28]}  Kd6 {[%clk 0:00:26]} 42. Rd3+ {[%clk 0:00:21]}  Ke7 {[%clk 0:00:26]} 43. Ra7+ {[%clk 0:00:20]}  Kf6 {[%clk 0:00:26]} 44. Rdd7 {[%clk 0:00:20]}  h3 {[%clk 0:00:15]} 45. Rf7+ {[%clk 0:00:19]}  Ke5 {[%clk 0:00:15]} 46. Rxg7 {[%clk 0:00:17]}  Rxg7 {[%clk 0:00:15]} 47. Rxg7 {[%clk 0:00:17]}  Rh4 {[%clk 0:00:15]} 48. Rg1 {[%clk 0:00:16]}  h2 {[%clk 0:00:16]} 49. Rh1 {[%clk 0:00:16]}  Kf4 {[%clk 0:00:16]} 50. Kc2 {[%clk 0:00:06]}  Kg3 {[%clk 0:00:16]} 0-1


[Site "https://www.chess.com"]

[Event "Titled Tuesday Blitz November 14 Late 2023"]
[White "Ventura Bolet, Maxim"]
[Black "Marchesich, Giovanni"]
[WhiteFideId "22238824"]
[BlackFideId "2824790"]
[WhiteElo "2496"]
[BlackElo "2409"]
[Result "1-0"]
[Round "11"]
[TimeControl "180+1"]
[Date "2023.11.14"]
[WhiteClock "0:00:27"]
[BlackClock "0:00:31"]
[Board "54"]

1. Nf3 {[%clk 0:03:00]}  Nf6 {[%clk 0:02:58]} 2. g3 {[%clk 0:03:01]}  c5 {[%clk 0:02:57]} 3. Bg2 {[%clk 0:03:01]}  Nc6 {[%clk 0:02:57]} 4. O-O {[%clk 0:02:59]}  e5 {[%clk 0:02:57]} 5. c4 {[%clk 0:02:57]}  Be7 {[%clk 0:02:56]} 6. Nc3 {[%clk 0:02:57]}  O-O {[%clk 0:02:56]} 7. Ne1 {[%clk 0:02:57]}  Ne8 {[%clk 0:02:54]} 8. Nc2 {[%clk 0:02:56]}  Nc7 {[%clk 0:02:54]} 9. Ne3 {[%clk 0:02:57]}  d6 {[%clk 0:02:55]} 10. d3 {[%clk 0:02:53]}  Be6 {[%clk 0:02:51]} 11. Ned5 {[%clk 0:02:54]}  Rb8 {[%clk 0:02:50]} 12. Bd2 {[%clk 0:02:51]}  a6 {[%clk 0:02:45]} 13. a3 {[%clk 0:02:39]}  b5 {[%clk 0:02:39]} 14. Rb1 {[%clk 0:02:24]}  b4 {[%clk 0:02:35]} 15. axb4 {[%clk 0:02:17]}  cxb4 {[%clk 0:02:34]} 16. Nxc7 {[%clk 0:02:13]}  Qxc7 {[%clk 0:02:30]} 17. Nd5 {[%clk 0:02:14]}  Qd7 {[%clk 0:02:25]} 18. Qa4 {[%clk 0:02:10]}  Rfc8 {[%clk 0:01:48]} 19. Qxa6 {[%clk 0:01:54]}  Ra8 {[%clk 0:01:44]} 20. Qb5 {[%clk 0:01:38]}  Ra5 {[%clk 0:01:43]} 21. Qb6 {[%clk 0:00:58]}  Bd8 {[%clk 0:01:38]} 22. Qe3 {[%clk 0:00:55]}  Ra4 {[%clk 0:01:00]} 23. b3 {[%clk 0:00:51]}  Ra2 {[%clk 0:00:53]} 24. Nxb4 {[%clk 0:00:46]}  Rxd2 {[%clk 0:00:41]} 25. Qxd2 {[%clk 0:00:33]}  Ba5 {[%clk 0:00:41]} 26. Bxc6 {[%clk 0:00:33]}  Rxc6 {[%clk 0:00:40]} 27. Ra1 {[%clk 0:00:33]}  Qc7 {[%clk 0:00:34]} 28. Nxc6 {[%clk 0:00:26]}  Bxd2 {[%clk 0:00:33]} 29. Ra8+ {[%clk 0:00:26]}  Bc8 {[%clk 0:00:33]} 30. Rxc8+ {[%clk 0:00:27]}  Qxc8 {[%clk 0:00:31]} 31. Ne7+ {[%clk 0:00:27]} 1-0


[Site "https://www.chess.com"]

[Event "Titled Tuesday Blitz November 14 Late 2023"]
[White "Su, Dion"]
[Black "Hajiyev, Kanan"]
[WhiteFideId "2029731"]
[BlackFideId "13404148"]
[WhiteElo "2405"]
[BlackElo "2492"]
[Result "0-1"]
[Round "11"]
[TimeControl "180+1"]
[Date "2023.11.14"]
[WhiteClock "0:00:15"]
[BlackClock "0:00:40"]
[Board "56"]

1. e4 {[%clk 0:03:00]}  c6 {[%clk 0:03:00]} 2. Nf3 {[%clk 0:03:00]}  d5 {[%clk 0:03:01]} 3. Nc3 {[%clk 0:03:00]}  a6 {[%clk 0:03:01]} 4. d4 {[%clk 0:03:00]}  Bg4 {[%clk 0:03:01]} 5. h3 {[%clk 0:03:00]}  Bh5 {[%clk 0:03:02]} 6. exd5 {[%clk 0:02:59]}  cxd5 {[%clk 0:03:02]} 7. g4 {[%clk 0:02:50]}  Bg6 {[%clk 0:03:03]} 8. Ne5 {[%clk 0:02:50]}  Nc6 {[%clk 0:03:04]} 9. h4 {[%clk 0:02:44]}  Nxe5 {[%clk 0:03:01]} 10. dxe5 {[%clk 0:02:45]}  h5 {[%clk 0:03:02]} 11. e6 {[%clk 0:02:38]}  Nf6 {[%clk 0:02:51]} 12. Bd3 {[%clk 0:02:32]}  Bxd3 {[%clk 0:02:45]} 13. exf7+ {[%clk 0:02:32]}  Kxf7 {[%clk 0:02:45]} 14. Qxd3 {[%clk 0:02:32]}  hxg4 {[%clk 0:02:42]} 15. Bg5 {[%clk 0:02:28]}  e6 {[%clk 0:02:41]} 16. O-O-O {[%clk 0:02:25]}  Bb4 {[%clk 0:02:41]} 17. Rhe1 {[%clk 0:02:04]}  Rc8 {[%clk 0:02:37]} 18. Bxf6 {[%clk 0:01:39]}  Qxf6 {[%clk 0:02:33]} 19. Nxd5 {[%clk 0:01:38]}  exd5 {[%clk 0:02:20]} 20. Qxd5+ {[%clk 0:01:36]}  Kf8 {[%clk 0:02:11]} 21. Re5 {[%clk 0:01:25]}  g6 {[%clk 0:01:52]} 22. Re6 {[%clk 0:01:02]}  Qf5 {[%clk 0:01:41]} 23. Qb3 {[%clk 0:00:50]}  Rxc2+ {[%clk 0:01:23]} 24. Qxc2 {[%clk 0:00:48]}  Qxe6 {[%clk 0:01:24]} 25. Kb1 {[%clk 0:00:36]}  Qf5 {[%clk 0:00:48]} 26. Rd3 {[%clk 0:00:34]}  Rxh4 {[%clk 0:00:47]} 27. a3 {[%clk 0:00:33]}  Be7 {[%clk 0:00:41]} 28. Ka2 {[%clk 0:00:21]}  Rh3 {[%clk 0:00:41]} 29. Qc8+ {[%clk 0:00:15]}  Qxc8 {[%clk 0:00:40]} 0-1


[Site "https://www.chess.com"]

[Event "Titled Tuesday Blitz November 14 Late 2023"]
[White "chessjazda"]
[Black "Martin Barcelo, Carles"]
[BlackFideId "24561444"]
[WhiteElo "2364"]
[BlackElo "2461"]
[Result "1-0"]
[Round "11"]
[TimeControl "180+1"]
[Date "2023.11.14"]
[WhiteClock "0:00:23"]
[BlackClock "0:00:00"]
[Board "58"]

1. e4 {[%clk 0:02:57]}  c6 {[%clk 0:02:57]} 2. d4 {[%clk 0:02:54]}  d5 {[%clk 0:02:58]} 3. Bd3 {[%clk 0:02:53]}  dxe4 {[%clk 0:02:58]} 4. Bxe4 {[%clk 0:02:53]}  Nf6 {[%clk 0:02:59]} 5. Bf3 {[%clk 0:02:53]}  Bf5 {[%clk 0:02:58]} 6. c3 {[%clk 0:02:51]}  e6 {[%clk 0:02:58]} 7. Bg5 {[%clk 0:02:51]}  h6 {[%clk 0:02:57]} 8. Bh4 {[%clk 0:02:51]}  Nbd7 {[%clk 0:02:58]} 9. Ne2 {[%clk 0:02:51]}  Bd6 {[%clk 0:02:58]} 10. Nd2 {[%clk 0:02:50]}  Qc7 {[%clk 0:02:58]} 11. Bg3 {[%clk 0:02:50]}  O-O {[%clk 0:02:57]} 12. O-O {[%clk 0:02:49]}  Rac8 {[%clk 0:02:55]} 13. Re1 {[%clk 0:02:47]}  Rfe8 {[%clk 0:02:56]} 14. Nf1 {[%clk 0:02:47]}  Rcd8 {[%clk 0:02:55]} 15. Ne3 {[%clk 0:02:43]}  Bg6 {[%clk 0:02:53]} 16. Bxd6 {[%clk 0:02:43]}  Qxd6 {[%clk 0:02:54]} 17. Ng3 {[%clk 0:02:40]}  e5 {[%clk 0:02:53]} 18. dxe5 {[%clk 0:02:38]}  Nxe5 {[%clk 0:02:53]} 19. Be2 {[%clk 0:02:32]}  Qxd1 {[%clk 0:02:46]} 20. Raxd1 {[%clk 0:02:29]}  Ne4 {[%clk 0:02:46]} 21. Nxe4 {[%clk 0:02:28]}  Bxe4 {[%clk 0:02:47]} 22. Rxd8 {[%clk 0:02:22]}  Rxd8 {[%clk 0:02:48]} 23. Rd1 {[%clk 0:02:22]}  Rxd1+ {[%clk 0:02:48]} 24. Bxd1 {[%clk 0:02:18]}  Nd3 {[%clk 0:02:47]} 25. Bc2 {[%clk 0:02:11]}  Bg6 {[%clk 0:02:38]} 26. Bxd3 {[%clk 0:02:04]}  Bxd3 {[%clk 0:02:39]} 27. f4 {[%clk 0:02:01]}  Kf8 {[%clk 0:02:39]} 28. Kf2 {[%clk 0:01:59]}  Ke7 {[%clk 0:02:40]} 29. Nd1 {[%clk 0:01:53]}  Be4 {[%clk 0:02:38]} 30. g3 {[%clk 0:01:51]}  Kd6 {[%clk 0:02:39]} 31. Ke3 {[%clk 0:01:50]}  Bb1 {[%clk 0:02:37]} 32. a3 {[%clk 0:01:49]}  Kd5 {[%clk 0:02:38]} 33. Nf2 {[%clk 0:01:38]}  Kc4 {[%clk 0:02:38]} 34. Kd2 {[%clk 0:01:38]}  Kb3 {[%clk 0:02:37]} 35. Kc1 {[%clk 0:01:36]}  Bf5 {[%clk 0:02:37]} 36. Nd1 {[%clk 0:01:34]}  Be4 {[%clk 0:02:26]} 37. Ne3 {[%clk 0:01:32]}  a5 {[%clk 0:02:24]} 38. Nf1 {[%clk 0:01:31]}  Kc4 {[%clk 0:02:23]} 39. Kd2 {[%clk 0:01:28]}  Kb3 {[%clk 0:02:24]} 40. Kc1 {[%clk 0:01:25]}  Kc4 {[%clk 0:02:22]} 41. Kd2 {[%clk 0:01:24]}  Bb1 {[%clk 0:02:21]} 42. Ne3+ {[%clk 0:01:22]}  Kc5 {[%clk 0:02:21]} 43. b4+ {[%clk 0:01:21]}  axb4 {[%clk 0:02:21]} 44. axb4+ {[%clk 0:01:21]}  Kd6 {[%clk 0:02:21]} 45. Kc1 {[%clk 0:01:08]}  Be4 {[%clk 0:02:20]} 46. Kd2 {[%clk 0:01:08]}  Ke6 {[%clk 0:02:21]} 47. c4 {[%clk 0:01:07]}  Kd6 {[%clk 0:02:21]} 48. Kc3 {[%clk 0:01:06]}  Bf3 {[%clk 0:02:15]} 49. c5+ {[%clk 0:01:05]}  Ke6 {[%clk 0:02:14]} 50. Kd4 {[%clk 0:01:05]}  g6 {[%clk 0:02:13]} 51. Kc3 {[%clk 0:01:02]}  Be2 {[%clk 0:02:11]} 52. Kd4 {[%clk 0:01:01]}  Bf3 {[%clk 0:02:10]} 53. Nc4 {[%clk 0:01:01]}  Be2 {[%clk 0:02:05]} 54. Na5 {[%clk 0:00:59]}  Ba6 {[%clk 0:02:05]} 55. Ke4 {[%clk 0:00:58]}  f6 {[%clk 0:02:04]} 56. g4 {[%clk 0:00:53]}  Ke7 {[%clk 0:02:01]} 57. h4 {[%clk 0:00:52]}  Ke6 {[%clk 0:01:59]} 58. f5+ {[%clk 0:00:49]}  gxf5+ {[%clk 0:02:00]} 59. gxf5+ {[%clk 0:00:49]}  Ke7 {[%clk 0:01:59]} 60. Kf4 {[%clk 0:00:49]}  Kf7 {[%clk 0:02:00]} 61. Nb3 {[%clk 0:00:48]}  Ke7 {[%clk 0:01:58]} 62. Nd4 {[%clk 0:00:47]}  Bc4 {[%clk 0:01:56]} 63. Nf3 {[%clk 0:00:45]}  Bd5 {[%clk 0:01:54]} 64. Nh2 {[%clk 0:00:45]}  Kf7 {[%clk 0:01:52]} 65. Ng4 {[%clk 0:00:44]}  Kg7 {[%clk 0:01:53]} 66. Ne3 {[%clk 0:00:44]}  Bb3 {[%clk 0:01:52]} 67. Nf1 {[%clk 0:00:45]}  Bc2 {[%clk 0:01:49]} 68. Nd2 {[%clk 0:00:45]}  Bd3 {[%clk 0:01:48]} 69. Nb3 {[%clk 0:00:43]}  Bc4 {[%clk 0:01:49]} 70. Na5 {[%clk 0:00:43]}  Ba6 {[%clk 0:01:50]} 71. Nb3 {[%clk 0:00:44]}  Bc4 {[%clk 0:01:49]} 72. Nd4 {[%clk 0:00:44]}  Kf7 {[%clk 0:01:47]} 73. Nf3 {[%clk 0:00:42]}  Be2 {[%clk 0:01:44]} 74. Ne1 {[%clk 0:00:42]}  Ke7 {[%clk 0:01:42]} 75. Nc2 {[%clk 0:00:41]}  Bd3 {[%clk 0:01:42]} 76. Ne3 {[%clk 0:00:40]}  Be2 {[%clk 0:01:39]} 77. Nc2 {[%clk 0:00:35]}  Bd3 {[%clk 0:01:38]} 78. Nd4 {[%clk 0:00:35]}  Bc4 {[%clk 0:01:39]} 79. Ke3 {[%clk 0:00:34]}  Kd7 {[%clk 0:01:36]} 80. Nf3 {[%clk 0:00:34]}  Ke7 {[%clk 0:01:34]} 81. Nd2 {[%clk 0:00:30]}  Bd5 {[%clk 0:01:34]} 82. Kd4 {[%clk 0:00:29]}  Kf7 {[%clk 0:01:33]} 83. Nf1 {[%clk 0:00:28]}  Bb3 {[%clk 0:01:29]} 84. Ne3 {[%clk 0:00:28]}  Kg7 {[%clk 0:01:27]} 85. Nc4 {[%clk 0:00:25]}  Bc2 {[%clk 0:01:02]} 86. Nd6 {[%clk 0:00:24]}  Kf8 {[%clk 0:01:00]} 87. Nxb7 {[%clk 0:00:24]}  Bxf5 {[%clk 0:01:00]} 88. Nd8 {[%clk 0:00:24]}  Bd7 {[%clk 0:00:59]} 89. Nb7 {[%clk 0:00:24]}  Ke7 {[%clk 0:00:58]} 90. Nd6 {[%clk 0:00:23]}  Ke6 {[%clk 0:00:58]} 91. Ke4 {[%clk 0:00:23]}  Ke7 {[%clk 0:00:46]} 92. Kf4 {[%clk 0:00:22]}  Ke6 {[%clk 0:00:46]} 93. Ke4 {[%clk 0:00:23]}  Ke7 {[%clk 0:00:47]} 94. Nc4 {[%clk 0:00:23]}  Ke6 {[%clk 0:00:45]} 95. Ne3 {[%clk 0:00:23]}  Ke7 {[%clk 0:00:42]} 96. Nf5+ {[%clk 0:00:23]}  Bxf5+ {[%clk 0:00:28]} 97. Kxf5 {[%clk 0:00:24]}  Kf7 {[%clk 0:00:28]} 98. h5 {[%clk 0:00:25]}  Ke7 {[%clk 0:00:29]} 99. Kg6 {[%clk 0:00:24]}  Ke6 {[%clk 0:00:29]} 100. Kxh6 {[%clk 0:00:25]}  Kf7 {[%clk 0:00:22]} 101. b5 {[%clk 0:00:23]}  cxb5 {[%clk 0:00:22]} 102. c6 {[%clk 0:00:23]}  Ke6 {[%clk 0:00:22]} 103. c7 {[%clk 0:00:22]}  Kd7 {[%clk 0:00:22]} 104. Kg7 {[%clk 0:00:22]}  b4 {[%clk 0:00:19]} 105. h6 {[%clk 0:00:22]}  b3 {[%clk 0:00:20]} 106. h7 {[%clk 0:00:23]}  b2 {[%clk 0:00:19]} 107. h8=Q {[%clk 0:00:23]}  Kxc7 {[%clk 0:00:18]} 108. Qh1 {[%clk 0:00:22]}  Kd6 {[%clk 0:00:17]} 109. Qb1 {[%clk 0:00:23]}  Kc5 {[%clk 0:00:18]} 110. Qxb2 {[%clk 0:00:23]}  Kd5 {[%clk 0:00:18]} 111. Kxf6 {[%clk 0:00:23]}  Ke4 {[%clk 0:00:19]} 112. Qe2+ {[%clk 0:00:23]}  Kf4 {[%clk 0:00:20]} 113. Qc4+ {[%clk 0:00:23]}  Ke3 {[%clk 0:00:20]} 114. Ke5 {[%clk 0:00:24]}  Kf2 {[%clk 0:00:21]} 115. Qd3 {[%clk 0:00:23]}  Kg2 {[%clk 0:00:21]} 116. Kf4 {[%clk 0:00:24]}  Kf2 {[%clk 0:00:22]} 117. Qd2+ {[%clk 0:00:24]}  Kg1 {[%clk 0:00:00]} 118. Kg3 {[%clk 0:00:23]} 1-0


[Site "https://www.chess.com"]

[Event "Titled Tuesday Blitz November 14 Late 2023"]
[White "FM_Kappeler"]
[Black "Nikologorsky, Matfei"]
[BlackFideId "24102474"]
[WhiteElo "2337"]
[BlackElo "2454"]
[Result "0-1"]
[Round "11"]
[TimeControl "180+1"]
[Date "2023.11.14"]
[WhiteClock "0:00:00"]
[BlackClock "0:00:17"]
[Board "59"]

1. d4 {[%clk 0:02:56]}  Nf6 {[%clk 0:02:59]} 2. c4 {[%clk 0:02:56]}  e6 {[%clk 0:02:59]} 3. g3 {[%clk 0:02:55]}  c5 {[%clk 0:02:50]} 4. d5 {[%clk 0:02:54]}  exd5 {[%clk 0:02:50]} 5. cxd5 {[%clk 0:02:55]}  d6 {[%clk 0:02:49]} 6. Nf3 {[%clk 0:02:54]}  g6 {[%clk 0:02:49]} 7. Bg2 {[%clk 0:02:54]}  Bg7 {[%clk 0:02:50]} 8. Nc3 {[%clk 0:02:52]}  O-O {[%clk 0:02:50]} 9. O-O {[%clk 0:02:52]}  Re8 {[%clk 0:02:50]} 10. Nd2 {[%clk 0:02:49]}  a6 {[%clk 0:02:46]} 11. a4 {[%clk 0:02:48]}  b6 {[%clk 0:02:35]} 12. Nc4 {[%clk 0:02:43]}  Bb7 {[%clk 0:02:18]} 13. Bf4 {[%clk 0:02:39]}  Bf8 {[%clk 0:02:18]} 14. Qd2 {[%clk 0:02:33]}  Nh5 {[%clk 0:02:06]} 15. Bg5 {[%clk 0:02:32]}  f6 {[%clk 0:02:02]} 16. Bh6 {[%clk 0:02:18]}  Ng7 {[%clk 0:01:46]} 17. Bh3 {[%clk 0:02:13]}  Nd7 {[%clk 0:01:36]} 18. Ra3 {[%clk 0:01:39]}  Ne5 {[%clk 0:01:32]} 19. Ne3 {[%clk 0:01:35]}  Bc8 {[%clk 0:01:19]} 20. Bxc8 {[%clk 0:01:08]}  Qxc8 {[%clk 0:01:20]} 21. Rb3 {[%clk 0:00:56]}  Rb8 {[%clk 0:01:20]} 22. Ne4 {[%clk 0:00:49]}  Qd8 {[%clk 0:01:16]} 23. Qc3 {[%clk 0:00:41]}  Be7 {[%clk 0:00:59]} 24. f4 {[%clk 0:00:33]}  Nf7 {[%clk 0:00:51]} 25. Bxg7 {[%clk 0:00:31]}  Kxg7 {[%clk 0:00:52]} 26. Ng4 {[%clk 0:00:28]}  h5 {[%clk 0:00:46]} 27. Ne3 {[%clk 0:00:14]}  b5 {[%clk 0:00:47]} 28. axb5 {[%clk 0:00:13]}  axb5 {[%clk 0:00:48]} 29. g4 {[%clk 0:00:09]}  b4 {[%clk 0:00:48]} 30. Qd2 {[%clk 0:00:09]}  hxg4 {[%clk 0:00:47]} 31. Nxg4 {[%clk 0:00:09]}  f5 {[%clk 0:00:48]} 32. Ng3 {[%clk 0:00:04]}  fxg4 {[%clk 0:00:47]} 33. f5 {[%clk 0:00:05]}  Bg5 {[%clk 0:00:43]} 34. Qc2 {[%clk 0:00:04]}  c4 {[%clk 0:00:20]} 35. fxg6 {[%clk 0:00:04]}  Ne5 {[%clk 0:00:18]} 36. Nf5+ {[%clk 0:00:03]}  Kg8 {[%clk 0:00:18]} 37. Rg3 {[%clk 0:00:00]}  Rf8 {[%clk 0:00:17]} 0-1


[Site "https://www.chess.com"]

[Event "Titled Tuesday Blitz November 14 Late 2023"]
[White "Arnold, Ken"]
[Black "Sivanandan, Bodhana"]
[WhiteFideId "2056836"]
[BlackFideId "497592"]
[WhiteElo "2424"]
[BlackElo "2224"]
[Result "1-0"]
[Round "11"]
[TimeControl "180+1"]
[Date "2023.11.14"]
[WhiteClock "0:00:43"]
[BlackClock "0:00:55"]
[Board "60"]

1. e4 {[%clk 0:03:00]}  e6 {[%clk 0:02:57]} 2. Nc3 {[%clk 0:03:00]}  c6 {[%clk 0:02:52]} 3. Nf3 {[%clk 0:02:59]}  d5 {[%clk 0:02:52]} 4. d4 {[%clk 0:02:58]}  Bb4 {[%clk 0:02:51]} 5. e5 {[%clk 0:02:57]}  Ne7 {[%clk 0:02:51]} 6. a3 {[%clk 0:02:57]}  Bxc3+ {[%clk 0:02:48]} 7. bxc3 {[%clk 0:02:58]}  Nd7 {[%clk 0:02:48]} 8. Bd3 {[%clk 0:02:58]}  c5 {[%clk 0:02:46]} 9. Ng5 {[%clk 0:02:58]}  h6 {[%clk 0:02:42]} 10. Qh5 {[%clk 0:02:51]}  g6 {[%clk 0:02:40]} 11. Qh3 {[%clk 0:02:41]}  Nf5 {[%clk 0:02:30]} 12. Nf3 {[%clk 0:02:33]}  cxd4 {[%clk 0:02:26]} 13. cxd4 {[%clk 0:02:31]}  Qc7 {[%clk 0:02:13]} 14. Bd2 {[%clk 0:02:27]}  b6 {[%clk 0:02:03]} 15. O-O {[%clk 0:02:19]}  Bb7 {[%clk 0:02:01]} 16. g4 {[%clk 0:02:13]}  Ne7 {[%clk 0:01:59]} 17. Rfc1 {[%clk 0:02:03]}  O-O-O {[%clk 0:01:49]} 18. a4 {[%clk 0:01:57]}  Nc6 {[%clk 0:01:45]} 19. a5 {[%clk 0:01:56]}  bxa5 {[%clk 0:01:42]} 20. c4 {[%clk 0:01:47]}  dxc4 {[%clk 0:01:40]} 21. Rxc4 {[%clk 0:01:47]}  Nb6 {[%clk 0:01:39]} 22. Bxa5 {[%clk 0:01:42]}  Rd5 {[%clk 0:01:30]} 23. Bxb6 {[%clk 0:01:41]}  Qxb6 {[%clk 0:01:27]} 24. Be4 {[%clk 0:01:36]}  Rd7 {[%clk 0:01:26]} 25. Rac1 {[%clk 0:01:34]}  Rc7 {[%clk 0:01:25]} 26. g5 {[%clk 0:01:26]}  h5 {[%clk 0:01:23]} 27. d5 {[%clk 0:01:24]}  Kb8 {[%clk 0:01:13]} 28. dxc6 {[%clk 0:01:23]}  Ba6 {[%clk 0:01:12]} 29. Rb1 {[%clk 0:01:06]}  Bxc4 {[%clk 0:01:10]} 30. Rxb6+ {[%clk 0:01:05]}  axb6 {[%clk 0:01:11]} 31. Nd4 {[%clk 0:01:04]}  Rd8 {[%clk 0:01:10]} 32. Qc3 {[%clk 0:01:02]}  Ba6 {[%clk 0:01:07]} 33. Qb4 {[%clk 0:01:00]}  Ka7 {[%clk 0:01:03]} 34. Qa4 {[%clk 0:00:55]}  b5 {[%clk 0:00:56]} 35. Nxb5+ {[%clk 0:00:54]}  Kb6 {[%clk 0:00:56]} 36. Nxc7 {[%clk 0:00:47]}  Kxc7 {[%clk 0:00:56]} 37. Qxa6 {[%clk 0:00:45]}  Rb8 {[%clk 0:00:55]} 38. Qa7+ {[%clk 0:00:43]}  Kc8 {[%clk 0:00:55]} 39. Qd7# {[%clk 0:00:43]} 1-0


[Site "https://www.chess.com"]

[Event "Titled Tuesday Blitz November 14 Late 2023"]
[White "Garrido, Denis"]
[Black "Reprintsev, Alexander"]
[WhiteFideId "601217"]
[BlackFideId "14100541"]
[WhiteElo "2391"]
[BlackElo "2481"]
[Result "0-1"]
[Round "11"]
[TimeControl "180+1"]
[Date "2023.11.14"]
[WhiteClock "0:01:56"]
[BlackClock "0:02:19"]
[Board "63"]

1. e4 {[%clk 0:03:00]}  d5 {[%clk 0:02:58]} 2. exd5 {[%clk 0:03:00]}  Qxd5 {[%clk 0:02:57]} 3. Nc3 {[%clk 0:03:01]}  Qa5 {[%clk 0:02:57]} 4. Nf3 {[%clk 0:03:01]}  Nc6 {[%clk 0:02:55]} 5. Bb5 {[%clk 0:03:01]}  Bd7 {[%clk 0:02:55]} 6. O-O {[%clk 0:03:00]}  a6 {[%clk 0:02:55]} 7. Bxc6 {[%clk 0:02:59]}  Bxc6 {[%clk 0:02:55]} 8. d4 {[%clk 0:03:00]}  O-O-O {[%clk 0:02:52]} 9. Ne5 {[%clk 0:03:00]}  Be8 {[%clk 0:02:49]} 10. b4 {[%clk 0:03:00]}  Qb6 {[%clk 0:02:45]} 11. Qf3 {[%clk 0:02:58]}  f6 {[%clk 0:02:40]} 12. Rb1 {[%clk 0:02:15]}  fxe5 {[%clk 0:02:32]} 13. Qxf8 {[%clk 0:02:14]}  exd4 {[%clk 0:02:29]} 14. Ne4 {[%clk 0:02:07]}  Nf6 {[%clk 0:02:19]} 15. Nxf6 {[%clk 0:01:56]} 0-1


[Site "https://www.chess.com"]